bitfinex-derivatives/quotes_ETHF0:USTF0_20250507
["timestamp","ask_amount","ask_price","bid_price","bid_amount"]
[1746641181621,6.85476,1801.1,1801.0,1.11032]
[1746641181827,6.85476,1801.1,1800.9,5.8117]
[1746641182130,5.2692,1801.6,1800.9,5.8117]
[1746641182131,8.477,1801.6,1800.9,10.8117]
[1746641182331,1.11003,1801.5,1801.4,1.11006]
[1746641182525,5.7445,1801.5,1801.1,5.6106]
[1746641182723,1.1101,1801.4,1801.1,5.6106]
[1746641182925,6.85464,1801.3,1801.1,9.92862]
[1746641183135,1.11021,1801.2,1800.8,3.2078]
[1746641183430,5.7445,1801.1,1800.9,6.72094]
[1746641183632,1.11032,1801.0,1800.9,6.72094]
[1746641183834,5.7445,1801.1,1800.7,3.2078]
[1746641184030,5.7445,1801.1,1801.0,1.11032]
[1746641184233,4.31791,1801.4,1800.9,2.77591]
[1746641184535,1.11014,1801.3,1801.2,1.1102]
[1746641184724,6.83364,1801.3,1801.2,1.1102]
[1746641184935,1.1102,1801.2,1801.1,7.16705]
[1746641185237,1.1102,1801.2,1801.1,6.0568]
[1746641185438,1.11026,1801.1,1800.9,1.11035]
[1746641185638,5.7235,1801.1,1801.0,1.11032]
[1746641186036,5.7235,1801.1,1800.6,3.2078]
[1746641186240,1.11041,1800.9,1800.8,1.11042]
[1746641186539,3.2078,1801.0,1800.9,1.11038]
[1746641186739,3.2078,1801.0,1800.7,6.0568]
[1746641187041,1.11039,1800.9,1800.8,1.11042]
[1746641187242,1.11038,1800.9,1800.7,7.16727]
[1746641187544,9.7998,1801.5,1800.9,2.7759]
[1746641187744,5.98304,1801.4,1801.0,6.1109]
[1746641187943,1.11024,1801.2,1801.1,1.11022]
[1746641188136,1.11017,1801.3,1801.2,1.11018]
[1746641188332,3.2078,1801.4,1801.0,6.1109]
[1746641188535,1.11026,1801.1,1801.0,7.22118]
[1746641188839,1.11021,1801.2,1801.1,1.11021]
[1746641189039,3.2078,1801.2,1801.0,6.1109]
[1746641189244,4.31804,1801.2,1801.1,1.11026]
[1746641189650,1.1103,1801.1,1801.0,1.1103]
[1746641189843,5.98331,1801.2,1800.7,6.1109]
[1746641190046,1.1103,1801.1,1801.0,1.1103]
[1746641190242,1.11035,1801.0,1800.9,1.11035]
[1746641190434,3.2078,1801.2,1800.7,6.1109]
[1746641190640,2.77568,1801.1,1800.7,6.1109]
[1746641190845,4.31822,1800.9,1800.8,1.11041]
[1746641191143,5.98383,1800.9,1800.2,2.77703]
[1746641191342,5.98379,1800.9,1800.3,5.98469]
[1746641191549,11.8644,1801.1,1800.5,3.2078]
[1746641191749,3.2078,1801.3,1800.9,3.2078]
[1746641191938,3.2078,1801.3,1801.2,1.1102]
[1746641192142,9.8018,1801.7,1801.5,1.11001]
[1746641192343,3.2078,1801.7,1801.6,1.10995]
[1746641192545,3.2078,1801.7,1801.3,11.70985]
[1746641192751,3.2078,1801.7,1801.6,1.10995]
[1746641192940,5.2704,1801.9,1801.4,8.50195]
[1746641192941,5.2704,1801.9,1801.5,2.77503]
[1746641193146,1.1098,1801.9,1801.6,5.7268]
[1746641193343,3.2078,1802.0,1801.6,5.7268]
[1746641193552,1.10989,1801.7,1801.6,6.83674]
[1746641193749,1.11005,1801.5,1801.3,4.31788]
[1746641193946,3.2078,1801.6,1801.5,1.11001]
[1746641194144,5.9824,1801.8,1801.4,1.11008]
[1746641194347,1.11001,1801.5,1801.4,6.0013]
[1746641194855,5.98271,1801.6,1801.1,3.2078]
[1746641195053,5.9827,1801.6,1801.1,9.2091]
[1746641195348,11.8758,1801.7,1801.1,9.2091]
[1746641195349,1.1102,1801.2,1801.1,6.0013]
[1746641195552,1.11024,1801.2,1801.1,1.11024]
[1746641195750,1.11024,1801.2,1800.9,2.77596]
[1746641195751,1.11009,1801.4,1801.3,1.11009]
[1746641195946,1.11013,1801.4,1801.3,1.11011]
[1746641196150,2.77505,1801.5,1801.1,6.0013]
[1746641196352,14.6506,1801.7,1801.3,1.11014]
[1746641196353,4.31792,1801.4,1801.3,1.11014]
[1746641196547,3.2078,1801.6,1801.2,3.2078]
[1746641196750,3.2078,1801.6,1800.7,10.056]
[1746641196751,1.11008,1801.4,1801.3,6.0013]
[1746641196950,1.11008,1801.4,1801.0,3.2078]
[1746641196951,2.77505,1801.5,1801.1,1.11022]
[1746641197253,1.11019,1801.3,1801.2,1.11019]
[1746641197450,5.98305,1801.4,1801.0,5.9145]
[1746641197658,5.98331,1801.2,1800.8,3.2078]
[1746641197846,3.2078,1800.9,1800.7,5.9145]
[1746641198154,5.98353,1801.1,1800.7,5.9145]
[1746641198348,1.11053,1800.7,1800.6,1.11055]
[1746641198547,3.2078,1800.7,1800.4,5.9145]
[1746641198750,1.11062,1800.6,1800.4,7.02519]
[1746641198959,3.2078,1800.7,1800.4,5.9145]
[1746641199257,3.2078,1800.5,1800.0,3.2078]
[1746641199455,1.11072,1800.4,1800.3,1.11072]
[1746641199755,1.11096,1800.0,1799.9,1.11098]
[1746641199955,3.2078,1800.1,1799.7,5.921]
[1746641200146,1.11094,1800.0,1799.9,1.11097]
[1746641200347,1.11106,1799.8,1799.7,7.03209]
[1746641200551,5.985,1800.1,1799.6,0.2023665]
[1746641200749,1.11112,1799.7,1799.6,0.2023665]
[1746641200952,4.31892,1799.7,1799.6,0.2023665]
[1746641201453,2.77808,1799.6,1799.1,1.11148]
[1746641201655,1.11144,1799.2,1799.0,7.03252]
[1746641201864,3.2078,1799.4,1799.0,5.921]
[1746641202057,8.5004,1799.6,1799.0,5.921]
[1746641202354,9.37272,1799.8,1799.0,5.921]
[1746641202355,1.11108,1799.8,1799.6,1.11115]
[1746641202553,4.31878,1800.0,1799.8,1.11103]
[1746641202751,4.31876,1800.0,1799.8,1.11104]
[1746641202946,6.595,1800.1,1799.8,1.11102]
[1746641203151,3.2078,1800.0,1799.2,6.595]
[1746641203347,6.595,1800.1,1799.8,1.11106]
[1746641203348,1.11103,1799.9,1799.8,1.11106]
[1746641203551,6.595,1800.1,1799.5,3.2078]
[1746641203754,1.11109,1799.8,1799.6,1.11116]
[1746641204060,5.98516,1800.0,1799.5,1.11125]
[1746641204255,3.2078,1799.8,1799.4,5.9373]
[1746641204459,1.11119,1799.6,1799.4,5.9373]
[1746641204758,3.2078,1799.6,1799.1,13.0663]
[1746641204958,1.11131,1799.4,1799.2,7.04867]
[1746641205154,5.7477,1799.5,1799.2,5.9373]
[1746641205656,5.7477,1799.5,1799.2,7.0487]
[1746641205657,1.11137,1799.4,1799.2,7.0487]
[1746641205957,5.7477,1799.5,1799.3,1.11135]
[1746641206160,1.11131,1799.4,1799.2,7.04868]
[1746641206356,1.11131,1799.4,1799.3,1.11137]
[1746641206662,1.11131,1799.4,1799.2,5.9373]
[1746641206958,1.1115,1799.1,1799.0,1.1115]
[1746641207160,1.1115,1799.1,1798.9,6.052]
[1746641207355,5.7752,1799.3,1799.0,4.3193]
[1746641207560,1.11147,1799.2,1799.0,1.1115]
[1746641208064,5.7752,1799.1,1798.6,7.16526925]
[1746641208264,3.2078,1799.0,1798.6,14.32902925]
[1746641208562,1.11172,1798.8,1798.6,14.32902925]
[1746641208757,6.88694,1798.7,1798.6,13.21726925]
[1746641209058,6.88694,1798.7,1798.6,7.16526925]
[1746641209255,5.7752,1798.7,1798.6,8.27706925]
[1746641209651,3.2078,1799.0,1798.6,17.68573925]
[1746641209951,5.9644,1798.8,1798.7,1.11174]
[1746641210353,1.11155,1799.1,1798.9,1.1116]
[1746641210555,5.9644,1799.1,1798.8,6.2009]
[1746641210960,5.9644,1799.1,1799.0,1.11156]
[1746641211354,3.2078,1799.6,1799.0,7.7789]
[1746641211662,1.11097,1800.0,1799.5,5.98592]
[1746641211861,1.11103,1799.9,1799.6,6.2009]
[1746641212161,5.9644,1800.2,1799.7,3.2078]
[1746641212361,9.1722,1800.2,1799.8,5.7687]
[1746641212562,1.111,1799.9,1799.8,5.7687]
[1746641212755,1.111,1799.9,1799.8,8.9765]
[1746641212957,5.8596,1800.0,1799.8,8.9765]
[1746641213266,5.8596,1800.0,1799.5,3.2078]
[1746641213454,5.8596,1800.0,1799.9,3.2078]
[1746641213762,1.11112,1799.7,1799.6,5.7687]
[1746641213963,1.11109,1799.8,1799.6,6.87985]
[1746641214261,1.11125,1799.5,1799.4,1.11129]
[1746641214466,5.8596,1799.7,1799.6,1.11119]
[1746641214658,1.11103,1799.9,1799.8,1.11106]
[1746641214860,5.8596,1799.9,1799.7,5.7687]
[1746641215058,5.8596,1799.9,1799.8,4.31886]
[1746641215359,16.6636,1800.3,1800.0,1.11092]
[1746641215555,1.11088,1800.1,1799.9,6.98698]
[1746641215759,1.11085,1800.2,1800.0,1.1109]
[1746641215960,16.6636,1800.3,1799.9,5.876]
[1746641216261,6.601,1800.3,1800.2,1.11082]
[1746641216466,2.0695,1800.5,1800.1,3.2078]
[1746641216766,1.11075,1800.3,1800.2,5.876]
[1746641216965,4.84613,1800.5,1800.1,4.31866]
[1746641217167,1.11094,1800.0,1799.9,9.0838]
[1746641217362,11.42113,1800.5,1799.9,9.0838]
[1746641217562,1.11086,1800.2,1800.0,1.11089]
[1746641217763,11.42113,1800.5,1800.0,1.11089]
[1746641217764,1.11088,1800.1,1800.0,5.876]
[1746641218065,1.11094,1800.0,1799.9,4.31877]
[1746641218362,1.11094,1800.0,1799.9,3.2078]
[1746641218964,3.2078,1800.3,1799.9,3.2078]
[1746641219261,11.8523,1800.5,1800.2,1.11078]
[1746641219467,8.6445,1800.5,1800.1,3.2078]
[1746641219765,1.11075,1800.4,1800.3,1.11075]
[1746641219964,3.18017,1800.5,1800.4,1.11069]
[1746641220163,1.11071,1800.4,1800.2,6.1285]
[1746641220364,5.2773,1800.5,1800.1,3.2078]
[1746641220564,2.77705,1800.2,1799.5,4.9932]
[1746641220770,1.11112,1799.7,1799.6,3.2078]
[1746641220965,1.11112,1799.7,1799.6,4.31899]
[1746641221269,2.77721,1800.1,1799.6,8.2078]
[1746641221564,1.11103,1799.9,1799.8,1.11102]
[1746641221765,2.77766,1799.8,1799.3,5.2702]
[1746641221970,2.77804,1799.6,1799.3,1.11135]
[1746641222268,1.11136,1799.4,1799.3,1.11135]
[1746641222468,1.11135,1799.4,1799.3,1.11135]
[1746641222669,1.11129,1799.5,1799.4,1.11129]
[1746641222873,1.11137,1799.3,1799.2,7.32161]
[1746641223068,1.11133,1799.4,1799.3,1.11132]
[1746641223264,1.11151,1799.1,1799.0,1.11151]
[1746641223570,2.77829,1799.4,1798.8,6.2102]
[1746641223765,1.11162,1798.9,1798.8,6.2102]
[1746641223971,1.11168,1798.8,1798.4,3.2078]
[1746641224169,1.11171,1798.8,1798.7,1.11173]
[1746641224467,16.5715,1799.2,1798.9,1.11159]
[1746641224660,17.68298,1799.2,1799.1,1.1115]
[1746641224868,1.11139,1799.3,1799.1,3.2078]
[1746641225071,1.11134,1799.4,1799.2,1.11138]
[1746641225269,1.11137,1799.3,1799.2,5.7531]
[1746641225664,1.11134,1799.4,1799.2,3.2078]
[1746641225869,3.2078,1799.6,1799.1,5.7531]
[1746641226076,1.11143,1799.2,1799.1,1.11148]
[1746641226371,1.11143,1799.2,1798.8,8.5323]
[1746641226566,1.11146,1799.2,1799.1,1.11148]
[1746641226869,2.77859,1799.2,1798.8,3.2078]
[1746641227062,1.11168,1798.8,1798.7,5.7531]
[1746641227461,1.11184,1798.6,1798.5,4.31965]
[1746641227665,12.81846,1799.0,1798.6,1.11178]
[1746641227865,6.576,1799.1,1798.7,3.2078]
[1746641228160,1.11165,1798.9,1798.8,1.11168]
[1746641228366,1.11165,1798.9,1798.7,3.2078]
[1746641228562,6.576,1799.1,1798.7,3.2078]
[1746641228767,6.576,1799.1,1798.8,3.2078]
[1746641228968,1.11151,1799.1,1798.8,3.2078]
[1746641229167,9.35439,1799.4,1798.9,10.05728]
[1746641229366,1.11139,1799.3,1799.2,1.1114]
[1746641229566,1.11133,1799.4,1799.2,5.7379]
[1746641229772,22.60114,1799.7,1799.2,5.7379]
[1746641229972,1.11143,1799.2,1799.1,3.2078]
[1746641230577,1.11162,1798.9,1798.8,9.0058]
[1746641230768,1.11174,1798.7,1798.6,6.9098]
[1746641231271,1.11174,1798.7,1798.6,5.798]
[1746641231471,15.96827,1799.1,1798.6,5.798]
[1746641231772,1.11218,1798.0,1797.9,0.43021625]
[1746641231978,2.77998,1798.3,1797.8,5.798]
[1746641232267,5.98842,1797.9,1797.4,4.8239]
[1746641232461,5.98842,1797.9,1797.3,3.2078]
[1746641232462,3.2078,1797.7,1797.3,3.2078]
[1746641232662,3.2078,1796.9,1796.8,12.27197456]
[1746641232865,1.11292,1796.8,1796.7,17.59354696]
[1746641233869,4.3207,1796.9,1796.7,17.59354696]
[1746641234070,1.11292,1796.8,1796.7,17.59354696]
[1746641234270,1.11304,1796.6,1796.3,24.55711463]
[1746641234467,1.11317,1796.4,1796.3,10.99726639]
[1746641234777,3.2078,1796.5,1796.3,22.00589095]
[1746641234976,1.11335,1796.1,1796.0,18.32877732]
[1746641235178,1.11335,1796.1,1795.7,12.3391218]
[1746641235179,1.11354,1795.8,1795.7,12.3391218]
[1746641235472,1.11366,1795.6,1795.5,23.40882463]
[1746641235677,4.32146,1795.6,1795.5,6.21050463]
[1746641235880,9.32146,1795.6,1795.5,6.21050463]
[1746641236075,9.32146,1795.6,1795.5,4.97941463]
[1746641236275,9.32146,1795.6,1795.5,2.53141463]
[1746641236878,3.2078,1795.6,1795.5,1.38973463]
[1746641237174,3.2078,1795.9,1795.5,10.20061919]
[1746641237481,12.1526,1796.0,1795.5,10.20061919]
[1746641237482,4.32144,1795.7,1795.5,10.20061919]
[1746641237673,1.11366,1795.6,1795.5,1.38973463]
[1746641238075,3.2078,1795.7,1795.5,1.38973463]
[1746641238275,5.98,1795.6,1795.5,8.81088456]
[1746641238470,4.3213,1795.9,1795.6,8.81088456]
[1746641238670,3.2078,1795.7,1795.5,14.96688456]
[1746641238871,3.2078,1795.7,1795.1,3.2078]
[1746641239072,3.2078,1795.9,1795.6,8.81088456]
[1746641239382,1.11366,1795.6,1795.4,8.81088456]
[1746641239681,9.1177,1795.5,1794.7,10.0858]
[1746641239882,1.11379,1795.4,1795.3,8.81088456]
[1746641240082,5.9099,1795.4,1795.1,8.81088456]
[1746641240284,3.2078,1795.2,1794.9,8.81088456]
[1746641240582,3.2078,1795.0,1794.8,6.1536]
[1746641240783,3.2078,1795.3,1794.8,9.3614]
[1746641240978,4.32169,1795.3,1794.9,6.1536]
[1746641241177,3.2078,1795.3,1795.2,8.81088456]
[1746641241383,3.2078,1795.6,1795.2,6.73068456]
[1746641241583,3.2078,1795.8,1795.4,3.2078]
[1746641241780,4.32119,1796.1,1795.5,6.1536]
[1746641241986,3.2078,1796.1,1795.6,3.2078]
[1746641242284,1.11335,1796.1,1796.0,6.73068456]
[1746641242474,7.02323,1796.2,1796.0,6.73068456]
[1746641242679,10.0858,1796.3,1796.1,6.73068456]
[1746641242879,10.0858,1796.3,1796.2,6.73068456]
[1746641243083,3.62893039,1796.4,1796.2,6.73068456]
[1746641243285,3.62893039,1796.4,1796.3,12.92998456]
[1746641243887,4.74210039,1796.4,1796.3,12.92998456]
[1746641244087,3.62893039,1796.4,1796.3,17.92998456]
[1746641244281,1.11277,1797.1,1796.5,1.25227391]
[1746641244479,13.10643867,1797.2,1796.8,4.46007391]
[1746641244681,8.78594867,1797.2,1796.8,4.46007391]
[1746641244979,0.88050732,1797.2,1797.1,1.25227391]
[1746641245175,0.88050732,1797.2,1797.1,5.57280391]
[1746641245385,0.88050732,1797.2,1797.1,4.46007391]
[1746641245588,0.88050732,1797.2,1797.1,7.42127391]
[1746641245777,0.88050732,1797.2,1797.1,8.53400391]
[1746641245978,1.11267,1797.2,1797.1,7.42127391]
[1746641246285,3.2078,1797.3,1796.8,3.2078]
[1746641246489,12.65523637,1797.5,1796.8,3.2078]
[1746641246682,1.11269,1797.2,1797.0,1.11279]
[1746641246885,12.65523637,1797.5,1797.0,3.2078]
[1746641247085,12.65523637,1797.5,1796.9,1.11283]
[1746641247390,3.2078,1797.1,1796.7,1.11294]
[1746641247584,5.98942,1797.3,1796.6,6.88]
[1746641247790,1.11284,1797.0,1796.7,1.11294]
[1746641247979,1.11286,1796.9,1796.7,1.11296]
[1746641248184,6.1297,1797.2,1796.6,50.8878]
[1746641248484,5.98968,1797.1,1796.6,3.2078]
[1746641248781,5.9147,1797.0,1796.6,3.2078]
[1746641248986,3.2078,1797.3,1796.8,3.2078]
[1746641249186,3.2078,1797.5,1797.0,3.2078]
[1746641249382,5.9147,1797.6,1797.1,5.7947]
[1746641249589,1.11259,1797.4,1797.1,5.7947]
[1746641249891,5.9147,1797.3,1797.2,1.11267]
[1746641250082,5.9147,1797.3,1797.1,6.90739]
[1746641250083,7.02733,1797.3,1797.1,6.90739]
[1746641250487,3.2078,1797.5,1796.9,5.98992]
[1746641250691,3.2078,1797.7,1797.3,3.2078]
[1746641250993,1.11248,1797.5,1797.4,1.53576199]
[1746641251289,3.2078,1797.5,1797.0,3.2078]
[1746641251484,3.2078,1797.5,1797.0,8.3822]
[1746641251680,4.32032,1797.5,1797.3,1.11258]
[1746641251889,3.2078,1797.7,1797.2,5.98943]
[1746641252088,5.9336,1797.8,1797.3,2.78153]
[1746641252288,5.9336,1797.8,1797.7,1.11236]
[1746641252482,5.9336,1797.8,1797.6,1.11241]
[1746641252786,5.9336,1797.8,1797.2,12.86735]
[1746641252980,1.1125,1797.5,1797.3,1.11256]
[1746641253179,3.31905326,1797.7,1797.3,1.11256]
[1746641253392,6.04485945,1797.6,1797.3,1.11256]
[1746641253589,3.2078,1797.5,1797.1,4.904]
[1746641253784,3.2078,1797.5,1797.1,7.68583]
[1746641253991,0.11125945,1797.6,1797.1,7.68583]
[1746641254192,7.04613,1797.5,1797.2,6.2209]
[1746641254392,5.9336,1797.5,1797.3,1.1126]
[1746641254691,9.1414,1797.5,1797.1,6.01669]
[1746641254889,0.11127183,1797.4,1797.1,4.904]
[1746641255081,0.11127183,1797.4,1797.2,6.2803]
[1746641255290,1.11261,1797.3,1797.2,6.2803]
[1746641255480,6.1457,1797.3,1797.2,6.2803]
[1746641256289,0.11127183,1797.4,1797.2,6.2803]
[1746641256788,0.11127183,1797.4,1797.2,9.4881]
[1746641257094,1.1122,1798.0,1797.2,21.3651]
[1746641257281,1.1122,1798.0,1797.7,3.2078]
[1746641257282,6.1457,1798.0,1797.7,3.2078]
[1746641257486,3.2078,1798.1,1797.8,6.2803]
[1746641257688,3.2078,1798.1,1797.8,47.0803]
[1746641258181,7.37073,1798.3,1797.9,5.7322]
[1746641258389,9.4665,1798.3,1797.9,5.7322]
[1746641258591,3.2078,1798.3,1797.9,8.94]
[1746641258783,7.37058,1798.5,1797.9,8.94]
[1746641258992,3.2078,1798.4,1798.0,6.877]
[1746641259188,3.2078,1798.4,1798.1,5.7322]
[1746641259390,7.37058,1798.5,1798.1,5.7322]
[1746641259587,3.2078,1798.6,1798.1,8.94]
[1746641260195,3.2078,1798.6,1798.2,5.7322]
[1746641260388,3.2078,1798.6,1798.2,10.998]
[1746641261483,1.11175,1798.7,1798.2,10.998]
[1746641262290,1.11198,1798.4,1798.2,10.998]
[1746641262496,1.11199,1798.3,1798.2,10.998]
[1746641262696,4.31969,1798.5,1798.2,10.998]
[1746641262992,3.2078,1798.5,1798.2,10.998]
[1746641263384,1.1117,1798.8,1798.2,10.998]
[1746641263584,5.9908,1798.8,1798.2,10.998]
[1746641263799,3.2078,1799.0,1798.2,10.998]
[1746641264093,1.11182,1798.6,1798.2,10.998]
[1746641264293,5.9183,1798.5,1798.2,10.998]
[1746641264595,1.11183,1798.6,1798.2,10.998]
[1746641264890,3.2078,1798.3,1797.9,4.827]
[1746641265191,3.2078,1798.3,1797.8,44.0078]
[1746641265490,4.31997,1798.1,1797.8,6.0999]
[1746641265693,3.2078,1797.9,1797.8,6.0999]
[1746641265990,3.2078,1797.9,1797.7,47.675]
[1746641266198,1.11223,1798.0,1797.7,47.675]
[1746641266392,1.11223,1798.0,1797.7,6.875]
[1746641266689,1.11238,1797.7,1797.4,3.2078]
[1746641266891,3.2078,1797.8,1797.4,3.2078]
[1746641267097,4.32014,1797.8,1797.4,9.3061]
[1746641267294,3.2078,1797.8,1797.4,9.3061]
[1746641267495,1.11241,1797.7,1797.4,9.3061]
[1746641267691,5.98891,1797.6,1797.0,3.2078]
[1746641267892,1.11256,1797.4,1797.0,3.2078]
[1746641268200,1.11264,1797.3,1797.0,9.3061]
[1746641268490,4.32024,1797.6,1797.0,9.3061]
[1746641268695,3.2078,1797.6,1797.1,6.736]
[1746641268889,4.32008,1797.9,1797.2,9.3061]
[1746641269091,4.32008,1797.9,1797.7,1.11233]
[1746641269290,1.11235,1797.8,1797.3,2.78153]
[1746641269599,3.2078,1797.9,1797.4,6.0983]
[1746641269786,4.32009,1797.9,1797.7,1.11234]
[1746641269989,3.2078,1797.9,1797.5,2.78118]
[1746641270191,3.2078,1797.9,1797.8,1.1123]
[1746641270487,4.32006,1797.9,1797.7,1.11231]
[1746641270689,4.32006,1797.9,1797.8,1.1123]
[1746641270890,1.11226,1797.9,1797.5,8.68758]
[1746641271100,8.3688,1798.1,1797.9,1.11224]
[1746641271399,3.2078,1798.1,1797.8,1.11228]
[1746641271608,3.2078,1798.1,1797.5,5.9064]
[1746641271902,3.2078,1798.1,1797.8,1.11226]
[1746641271903,1.1122,1798.0,1797.8,1.11226]
[1746641272101,3.2078,1798.1,1797.9,1.11221]
[1746641272286,3.2078,1798.1,1798.0,1.11218]
[1746641272492,4.31991,1798.1,1798.0,1.11218]
[1746641272797,1.11232,1797.8,1797.5,6.736]
[1746641273092,1.11242,1797.6,1797.1,9.9438]
[1746641273293,3.2078,1797.8,1797.1,9.9438]
[1746641273496,1.1124,1797.7,1797.2,5.8008]
[1746641273794,3.2078,1797.8,1797.2,5.8008]
[1746641273993,1.11242,1797.7,1797.2,5.8008]
[1746641274195,1.11242,1797.6,1797.2,5.8008]
[1746641274390,3.2078,1797.4,1797.1,6.736]
[1746641274597,4.32037,1797.4,1797.1,6.736]
[1746641275096,3.2078,1797.4,1797.1,6.736]
[1746641275303,3.2078,1797.4,1797.3,1.11261]
[1746641275497,4.32035,1797.4,1797.3,1.11261]
[1746641275902,1.11255,1797.4,1797.3,1.11261]
[1746641276203,3.2078,1797.6,1797.5,1.11248]
[1746641276591,3.2078,1798.1,1798.0,1.11218]
[1746641276794,3.2078,1798.1,1797.7,3.2078]
[1746641276999,3.2078,1798.1,1797.7,2.78087]
[1746641277201,3.2078,1798.1,1797.6,11.92275]
[1746641277504,1.11222,1798.0,1797.8,1.11224]
[1746641277704,1.11224,1797.9,1797.8,1.11224]
[1746641278105,3.2078,1798.1,1798.0,1.11218]
[1746641278304,7.23392171,1798.2,1798.1,1.11211]
[1746641278713,8.34601171,1798.2,1798.1,1.11211]
[1746641278910,7.23392171,1798.2,1798.1,1.11211]
[1746641279113,1.11219,1798.0,1797.9,1.11219]
[1746641279308,3.2078,1798.1,1798.0,1.11216]
[1746641279504,1.11222,1798.0,1797.9,1.1122]
[1746641280006,1.11242,1797.7,1797.6,1.11242]
[1746641280212,4.32022,1797.7,1797.6,1.11242]
[1746641280508,1.11256,1797.4,1797.3,1.11255]
[1746641280810,1.11248,1797.5,1797.4,1.11255]
[1746641281012,1.11248,1797.6,1797.5,1.11247]
[1746641281814,1.11255,1797.5,1797.4,1.11252]
[1746641282010,2.78078,1797.8,1797.2,5.98939]
[1746641282011,1.11245,1797.6,1797.5,1.11248]
[1746641282210,4.32025,1797.6,1797.5,1.11248]
[1746641282411,1.1126,1797.4,1797.3,1.11257]
[1746641282612,3.2078,1797.4,1797.3,1.11257]
[1746641282813,3.2078,1797.7,1797.6,1.11236]
[1746641283114,4.32016,1797.7,1797.6,1.11236]
[1746641283313,3.2078,1797.7,1797.6,1.11236]
[1746641283707,4.32002,1798.0,1797.9,1.11224]
[1746641283913,1.11232,1797.8,1797.7,1.1123]
[1746641284107,3.2078,1798.0,1797.5,3.2078]
[1746641284108,5.98826,1798.0,1797.5,3.2078]
[1746641284416,1.11241,1797.7,1797.4,2.78136]
[1746641284607,3.2078,1797.6,1797.0,6.1559]
[1746641284807,1.11259,1797.4,1797.0,6.1559]
[1746641285010,3.2078,1797.6,1797.5,1.11248]
[1746641285210,6.2401,1797.6,1797.5,1.11248]
[1746641286209,11.2401,1797.6,1796.9,10.1344]
[1746641286408,3.2078,1797.0,1796.6,6.0806]
[1746641286710,1.11293,1796.8,1796.5,8.0362]
[1746641286915,10.56088,1796.7,1796.4,46.8806]
[1746641287109,9.4479,1796.7,1796.4,46.8806]
[1746641287414,6.2401,1796.7,1796.4,50.0884]
[1746641287914,1.11306,1796.6,1796.4,44.0078]
[1746641288113,5.6817,1796.5,1796.4,3.2078]
[1746641288609,1.11331,1796.2,1795.9,8.0362]
[1746641288807,5.6817,1796.1,1795.9,4.8284]
[1746641289004,3.2078,1796.5,1795.9,4.8284]
[1746641289207,5.6817,1796.4,1796.0,5.7785]
[1746641289410,4.32119,1796.1,1795.7,40.8]
[1746641289608,5.6817,1796.0,1795.7,40.8]
[1746641289806,5.6817,1796.0,1795.7,5.7785]
[1746641290013,6.79515,1796.0,1795.7,5.7785]
[1746641290214,4.32129,1795.9,1795.3,3.2078]
[1746641290417,1.11367,1795.6,1795.3,3.2078]
[1746641290607,5.6817,1795.5,1795.1,4.8612]
[1746641291307,5.6817,1795.5,1795.2,6.0294]
[1746641292016,3.2078,1795.7,1795.2,6.0294]
[1746641292218,3.2078,1796.0,1795.2,12.7684]
[1746641292419,5.8939,1795.8,1795.2,12.7684]
[1746641292818,4.32143,1795.7,1795.2,6.0294]
[1746641293021,1.11372,1795.5,1795.2,6.0294]
[1746641293314,7.00771,1795.4,1795.2,6.0294]
[1746641293520,5.8939,1795.4,1795.1,4.8612]
[1746641293716,5.8939,1795.4,1795.1,8.069]
[1746641294018,5.8939,1795.4,1795.2,6.0294]
[1746641294616,7.00769,1795.4,1795.1,4.8612]
[1746641294817,5.8939,1795.4,1795.0,5.8764]
[1746641295223,1.11387,1795.3,1795.0,5.8764]
[1746641295415,6.0215,1795.2,1794.9,8.4092]
[1746641295812,6.0215,1795.2,1794.7,5.8764]
[1746641296121,3.2078,1794.9,1794.4,13.3347]
[1746641296315,3.2078,1794.9,1793.6,56.803]
[1746641296316,2.78556,1794.7,1794.2,3.2078]
[1746641296513,2.78556,1794.7,1793.8,5.8764]
[1746641296514,1.11444,1794.4,1793.8,5.8764]
[1746641296713,6.0215,1794.3,1793.8,4.9224]
[1746641297321,3.2078,1794.2,1793.3,3.2078]
[1746641297619,1.11468,1794.0,1793.8,1.11476]
[1746641297922,5.8105,1793.9,1793.5,3.2078]
[1746641298124,5.8105,1793.9,1793.4,8.78181]
[1746641298325,5.8105,1793.9,1793.7,1.11481]
[1746641298627,5.8105,1793.9,1793.7,1.1148]
[1746641298813,5.8105,1793.9,1793.8,1.11478]
[1746641299325,0.1114765,1794.1,1794.0,1.11465]
[1746641299516,0.1114765,1794.1,1793.7,5.9943]
[1746641299913,3.3192765,1794.1,1793.7,5.9943]
[1746641300214,3.2078,1793.9,1793.3,3.2078]
[1746641300524,1.11485,1793.7,1793.0,19.9769]
[1746641300717,7.17191,1793.8,1793.1,46.5141]
[1746641300918,6.0571,1793.8,1793.1,46.5141]
[1746641301423,6.0571,1793.8,1793.2,3.2078]
[1746641301623,6.0571,1793.8,1793.3,5.7141]
[1746641301820,7.17189,1793.8,1793.3,5.7141]
[1746641302025,3.2078,1793.4,1792.8,3.2078]
[1746641302223,3.2078,1793.1,1792.6,13.0944]
[1746641302422,3.2078,1793.1,1790.9,13.32606277]
[1746641302423,6.0571,1793.0,1792.3,3.2078]
[1746641302729,3.2078,1792.7,1792.1,5.7141]
[1746641303024,9.2649,1793.0,1792.2,6.591]